[Event "Titled Tuesday Blitz January 31 Early 2023"]
[White "Dimitrov, Atanas"]
[Black "Harsh Suresh"]
[WhiteFideId "2901315"]
[BlackFideId "45018464"]
[WhiteElo "2269"]
[BlackElo "2298"]
[Result "0-1"]
[Round "06"]
[TimeControl "180+2"]
[Date "2023.01.31"]
[WhiteClock "0:01:39"]
[BlackClock "0:00:56"]

1. e4 {[%clk 0:02:56]}  c5 {[%clk 0:02:59]} 2. Nf3 {[%clk 0:02:56]}  g6 {[%clk 0:02:59]} 3. d4 {[%clk 0:02:56]}  cxd4 {[%clk 0:02:59]} 4. Nxd4 {[%clk 0:02:57]}  Nc6 {[%clk 0:02:58]} 5. Nc3 {[%clk 0:02:56]}  Bg7 {[%clk 0:02:58]} 6. Nde2 {[%clk 0:02:56]}  Ne5 {[%clk 0:02:47]} 7. h3 {[%clk 0:02:47]}  d6 {[%clk 0:02:42]} 8. b3 {[%clk 0:02:41]}  Nf6 {[%clk 0:02:39]} 9. Be3 {[%clk 0:02:42]}  O-O {[%clk 0:02:37]} 10. Qd2 {[%clk 0:02:40]}  a6 {[%clk 0:02:31]} 11. a4 {[%clk 0:02:39]}  Be6 {[%clk 0:02:29]} 12. Nf4 {[%clk 0:02:36]}  Rc8 {[%clk 0:02:25]} 13. Rd1 {[%clk 0:02:30]}  b5 {[%clk 0:02:04]} 14. axb5 {[%clk 0:02:28]}  axb5 {[%clk 0:02:05]} 15. Ncd5 {[%clk 0:02:25]}  Nxe4 {[%clk 0:02:02]} 16. Qc1 {[%clk 0:02:18]}  Nc3 {[%clk 0:01:39]} 17. Nxc3 {[%clk 0:02:17]}  Rxc3 {[%clk 0:01:40]} 18. Be2 {[%clk 0:02:12]}  Bxb3 {[%clk 0:01:37]} 19. Rd2 {[%clk 0:02:05]}  Nc4 {[%clk 0:01:34]} 20. Bxc4 {[%clk 0:02:01]}  Bxc4 {[%clk 0:01:34]} 21. Qb1 {[%clk 0:01:57]}  Ra3 {[%clk 0:01:31]} 22. Rd1 {[%clk 0:01:53]}  e5 {[%clk 0:01:09]} 23. Nd5 {[%clk 0:01:44]}  e4 {[%clk 0:01:00]} 24. Nb6 {[%clk 0:01:39]}  Rxe3+ {[%clk 0:00:56]} 0-1


[Site "https://www.chess.com"]

[Event "Titled Tuesday Blitz January 31 Early 2023"]
[White "Rakhmatullaev, Almas"]
[Black "Yelisieiev, Yevhenii"]
[WhiteFideId "14205793"]
[BlackFideId "14139642"]
[WhiteElo "2275"]
[BlackElo "2418"]
[Result "1-0"]
[Round "06"]
[TimeControl "180+2"]
[Date "2023.01.31"]
[WhiteClock "0:00:07"]
[BlackClock "0:00:17"]

1. e4 {[%clk 0:03:00]}  d6 {[%clk 0:03:00]} 2. d4 {[%clk 0:03:00]}  Nf6 {[%clk 0:03:01]} 3. Nc3 {[%clk 0:03:01]}  e5 {[%clk 0:03:01]} 4. Nf3 {[%clk 0:03:00]}  Nbd7 {[%clk 0:03:01]} 5. Bc4 {[%clk 0:03:00]}  Be7 {[%clk 0:03:02]} 6. O-O {[%clk 0:03:00]}  O-O {[%clk 0:03:02]} 7. a4 {[%clk 0:02:59]}  c6 {[%clk 0:03:03]} 8. Qe2 {[%clk 0:02:58]}  a5 {[%clk 0:02:49]} 9. Rd1 {[%clk 0:02:57]}  Qc7 {[%clk 0:02:48]} 10. h3 {[%clk 0:02:56]}  Nb6 {[%clk 0:02:38]} 11. Bb3 {[%clk 0:02:54]}  Nfd7 {[%clk 0:02:38]} 12. Be3 {[%clk 0:02:51]}  exd4 {[%clk 0:02:38]} 13. Bxd4 {[%clk 0:02:41]}  Nc5 {[%clk 0:02:38]} 14. Rd2 {[%clk 0:02:15]}  Nxb3 {[%clk 0:02:34]} 15. cxb3 {[%clk 0:02:16]}  Be6 {[%clk 0:02:33]} 16. Rc1 {[%clk 0:02:10]}  Bxb3 {[%clk 0:02:28]} 17. e5 {[%clk 0:01:23]}  Bc4 {[%clk 0:02:04]} 18. Bxb6 {[%clk 0:01:14]}  Qxb6 {[%clk 0:01:43]} 19. Qxc4 {[%clk 0:01:13]}  d5 {[%clk 0:01:43]} 20. Qg4 {[%clk 0:01:11]}  Rae8 {[%clk 0:01:39]} 21. Re1 {[%clk 0:01:08]}  Kh8 {[%clk 0:01:34]} 22. Rde2 {[%clk 0:01:03]}  Bb4 {[%clk 0:01:31]} 23. Ng5 {[%clk 0:00:35]}  h6 {[%clk 0:01:17]} 24. Qh5 {[%clk 0:00:23]}  Kg8 {[%clk 0:01:14]} 25. e6 {[%clk 0:00:08]}  fxe6 {[%clk 0:00:51]} 26. Nxe6 {[%clk 0:00:08]}  d4 {[%clk 0:00:41]} 27. Nxf8 {[%clk 0:00:07]}  Rxf8 {[%clk 0:00:41]} 28. Ne4 {[%clk 0:00:03]}  d3 {[%clk 0:00:40]} 29. Re3 {[%clk 0:00:04]}  Bxe1 {[%clk 0:00:39]} 30. Rxe1 {[%clk 0:00:05]}  Qxb2 {[%clk 0:00:38]} 31. Qd1 {[%clk 0:00:03]}  Rd8 {[%clk 0:00:37]} 32. Qd2 {[%clk 0:00:03]}  Qd4 {[%clk 0:00:36]} 33. Re3 {[%clk 0:00:03]}  c5 {[%clk 0:00:36]} 34. f3 {[%clk 0:00:03]}  c4 {[%clk 0:00:36]} 35. Kh2 {[%clk 0:00:04]}  Qe5+ {[%clk 0:00:30]} 36. Ng3 {[%clk 0:00:03]}  Qf4 {[%clk 0:00:28]} 37. Re8+ {[%clk 0:00:03]}  Rxe8 {[%clk 0:00:26]} 38. Qxf4 {[%clk 0:00:03]}  Rc8 {[%clk 0:00:25]} 39. Qf5 {[%clk 0:00:04]}  Rc6 {[%clk 0:00:25]} 40. Qd5+ {[%clk 0:00:04]}  Kh8 {[%clk 0:00:22]} 41. Ne4 {[%clk 0:00:05]}  c3 {[%clk 0:00:20]} 42. Nxc3 {[%clk 0:00:03]}  Rxc3 {[%clk 0:00:20]} 43. Qxa5 {[%clk 0:00:02]}  d2 {[%clk 0:00:19]} 44. Qd8+ {[%clk 0:00:03]}  Kh7 {[%clk 0:00:20]} 45. Qxd2 {[%clk 0:00:03]}  Rc6 {[%clk 0:00:20]} 46. Qd3+ {[%clk 0:00:04]}  Kh8 {[%clk 0:00:18]} 47. Qb3 {[%clk 0:00:04]}  b6 {[%clk 0:00:17]} 48. Qb5 {[%clk 0:00:04]}  Rg6 {[%clk 0:00:17]} 49. Qe8+ {[%clk 0:00:03]}  Kh7 {[%clk 0:00:16]} 50. Qe4 {[%clk 0:00:04]}  h5 {[%clk 0:00:16]} 51. h4 {[%clk 0:00:05]}  Kh6 {[%clk 0:00:16]} 52. g4 {[%clk 0:00:06]}  hxg4 {[%clk 0:00:16]} 53. fxg4 {[%clk 0:00:06]}  Rf6 {[%clk 0:00:17]} 54. g5+ {[%clk 0:00:07]} 1-0


[Site "https://www.chess.com"]

[Event "Titled Tuesday Blitz January 31 Early 2023"]
[White "Koelle, Tobias"]
[Black "Antonica, Dragos-Andrei"]
[WhiteFideId "16207378"]
[BlackFideId "1246372"]
[WhiteElo "2432"]
[BlackElo "2373"]
[Result "0-1"]
[Round "06"]
[TimeControl "180+2"]
[Date "2023.01.31"]
[WhiteClock "0:00:04"]
[BlackClock "0:00:09"]

1. a3 {[%clk 0:02:53]}  d5 {[%clk 0:02:59]} 2. e3 {[%clk 0:02:49]}  Nf6 {[%clk 0:02:58]} 3. Nf3 {[%clk 0:02:46]}  Bg4 {[%clk 0:02:57]} 4. h3 {[%clk 0:02:44]}  Bh5 {[%clk 0:02:57]} 5. c4 {[%clk 0:02:44]}  c6 {[%clk 0:02:56]} 6. Qb3 {[%clk 0:02:43]}  Qb6 {[%clk 0:02:55]} 7. Qxb6 {[%clk 0:02:39]}  axb6 {[%clk 0:02:56]} 8. cxd5 {[%clk 0:02:36]}  Nxd5 {[%clk 0:02:56]} 9. Be2 {[%clk 0:02:33]}  e6 {[%clk 0:02:55]} 10. d3 {[%clk 0:02:30]}  Nd7 {[%clk 0:02:55]} 11. Nbd2 {[%clk 0:02:28]}  Be7 {[%clk 0:02:52]} 12. Ne4 {[%clk 0:02:17]}  Bg6 {[%clk 0:02:46]} 13. Bd2 {[%clk 0:02:15]}  N5f6 {[%clk 0:02:28]} 14. Nc3 {[%clk 0:02:06]}  Nc5 {[%clk 0:02:10]} 15. Ne5 {[%clk 0:02:01]}  Nb3 {[%clk 0:02:09]} 16. Rd1 {[%clk 0:01:59]}  O-O-O {[%clk 0:02:03]} 17. Nxg6 {[%clk 0:01:59]}  hxg6 {[%clk 0:02:03]} 18. g3 {[%clk 0:01:54]}  Rd7 {[%clk 0:01:53]} 19. Kf1 {[%clk 0:01:53]}  Rhd8 {[%clk 0:01:42]} 20. Kg2 {[%clk 0:01:52]}  e5 {[%clk 0:01:36]} 21. g4 {[%clk 0:01:47]}  Nc5 {[%clk 0:01:33]} 22. g5 {[%clk 0:01:38]}  Ne8 {[%clk 0:01:23]} 23. h4 {[%clk 0:01:28]}  Kc7 {[%clk 0:01:15]} 24. Bc1 {[%clk 0:01:17]}  Nxd3 {[%clk 0:01:15]} 25. Bg4 {[%clk 0:01:16]}  Rd6 {[%clk 0:01:05]} 26. Ne4 {[%clk 0:01:13]}  Rd5 {[%clk 0:01:05]} 27. Nc3 {[%clk 0:01:12]}  Rc5 {[%clk 0:01:01]} 28. Rd2 {[%clk 0:01:05]}  Nxc1 {[%clk 0:00:44]} 29. Rxd8 {[%clk 0:01:04]}  Bxd8 {[%clk 0:00:41]} 30. Rxc1 {[%clk 0:01:05]}  Nd6 {[%clk 0:00:40]} 31. Rd1 {[%clk 0:01:03]}  Be7 {[%clk 0:00:38]} 32. Kf3 {[%clk 0:00:57]}  f5 {[%clk 0:00:37]} 33. gxf6 {[%clk 0:00:57]}  gxf6 {[%clk 0:00:37]} 34. Be6 {[%clk 0:00:56]}  f5 {[%clk 0:00:29]} 35. Rg1 {[%clk 0:00:55]}  Bxh4 {[%clk 0:00:23]} 36. Rxg6 {[%clk 0:00:56]}  b5 {[%clk 0:00:19]} 37. Rh6 {[%clk 0:00:53]}  Bd8 {[%clk 0:00:16]} 38. Rh7+ {[%clk 0:00:52]}  Kb6 {[%clk 0:00:17]} 39. Rd7 {[%clk 0:00:52]}  Bc7 {[%clk 0:00:17]} 40. Ke2 {[%clk 0:00:48]}  e4 {[%clk 0:00:16]} 41. Rh7 {[%clk 0:00:39]}  Re5 {[%clk 0:00:16]} 42. Bd7 {[%clk 0:00:38]}  Nc4 {[%clk 0:00:16]} 43. Nd1 {[%clk 0:00:37]}  Rd5 {[%clk 0:00:15]} 44. b3 {[%clk 0:00:23]}  Nxa3 {[%clk 0:00:16]} 45. Rf7 {[%clk 0:00:21]}  f4 {[%clk 0:00:10]} 46. exf4 {[%clk 0:00:18]}  Nb1 {[%clk 0:00:11]} 47. Be6 {[%clk 0:00:16]}  Rd2+ {[%clk 0:00:11]} 48. Ke1 {[%clk 0:00:16]}  c5 {[%clk 0:00:09]} 49. Bf5 {[%clk 0:00:12]}  Rd4 {[%clk 0:00:05]} 50. Bg4 {[%clk 0:00:12]}  Nd2 {[%clk 0:00:04]} 51. Be6 {[%clk 0:00:09]}  Nf3+ {[%clk 0:00:04]} 52. Ke2 {[%clk 0:00:07]}  Rd2+ {[%clk 0:00:05]} 53. Ke3 {[%clk 0:00:07]}  Rxd1 {[%clk 0:00:05]} 54. Kxe4 {[%clk 0:00:07]}  Nd4 {[%clk 0:00:05]} 55. Bg4 {[%clk 0:00:07]}  Re1+ {[%clk 0:00:05]} 56. Kd3 {[%clk 0:00:07]}  Nc6 {[%clk 0:00:05]} 57. Bf3 {[%clk 0:00:07]}  Rf1 {[%clk 0:00:05]} 58. Ke2 {[%clk 0:00:07]}  Rb1 {[%clk 0:00:06]} 59. Bd5 {[%clk 0:00:05]}  Nd4+ {[%clk 0:00:06]} 60. Kd3 {[%clk 0:00:04]}  Rd1+ {[%clk 0:00:06]} 61. Ke3 {[%clk 0:00:03]}  Re1+ {[%clk 0:00:06]} 62. Kd2 {[%clk 0:00:03]}  Re2+ {[%clk 0:00:06]} 63. Kd3 {[%clk 0:00:04]}  Rxf2 {[%clk 0:00:07]} 64. Rf6+ {[%clk 0:00:02]}  Ka5 {[%clk 0:00:07]} 65. Rf7 {[%clk 0:00:03]}  Bb6 {[%clk 0:00:07]} 66. Bxb7 {[%clk 0:00:03]}  Kb4 {[%clk 0:00:07]} 67. Bd5 {[%clk 0:00:03]}  Rf1 {[%clk 0:00:06]} 68. f5 {[%clk 0:00:04]}  Rxf5 {[%clk 0:00:06]} 69. Rb7 {[%clk 0:00:04]}  Rxd5 {[%clk 0:00:06]} 70. Rxb6 {[%clk 0:00:03]}  Rh5 {[%clk 0:00:06]} 71. Ke4 {[%clk 0:00:04]}  Rh4+ {[%clk 0:00:06]} 72. Kd5 {[%clk 0:00:03]}  Nxb3 {[%clk 0:00:06]} 73. Rb8 {[%clk 0:00:02]}  Rd4+ {[%clk 0:00:06]} 74. Kc6 {[%clk 0:00:02]}  Na5+ {[%clk 0:00:06]} 75. Kb6 {[%clk 0:00:03]}  Rd6+ {[%clk 0:00:07]} 76. Kc7 {[%clk 0:00:03]}  Rh6 {[%clk 0:00:07]} 77. Rg8 {[%clk 0:00:01]}  c4 {[%clk 0:00:07]} 78. Kb8 {[%clk 0:00:02]}  Nb3 {[%clk 0:00:07]} 79. Ka8 {[%clk 0:00:02]}  c3 {[%clk 0:00:08]} 80. Rg4+ {[%clk 0:00:02]}  Ka3 {[%clk 0:00:08]} 81. Rg2 {[%clk 0:00:03]}  b4 {[%clk 0:00:08]} 82. Rc2 {[%clk 0:00:03]}  Nd4 {[%clk 0:00:08]} 83. Rc1 {[%clk 0:00:03]}  Kb2 {[%clk 0:00:08]} 84. Re1 {[%clk 0:00:03]}  c2 {[%clk 0:00:08]} 85. Re7 {[%clk 0:00:01]}  c1=Q {[%clk 0:00:08]} 86. Rc7 {[%clk 0:00:02]}  Qa1+ {[%clk 0:00:08]} 87. Kb8 {[%clk 0:00:02]}  Rh8+ {[%clk 0:00:08]} 88. Kb7 {[%clk 0:00:03]}  Qh1+ {[%clk 0:00:07]} 89. Ka7 {[%clk 0:00:01]}  Ra8+ {[%clk 0:00:07]} 90. Kb6 {[%clk 0:00:02]}  Qh6+ {[%clk 0:00:06]} 91. Kc5 {[%clk 0:00:03]}  Ra5+ {[%clk 0:00:05]} 92. Kxd4 {[%clk 0:00:01]}  Qd6+ {[%clk 0:00:04]} 93. Kc4 {[%clk 0:00:01]}  Qxc7+ {[%clk 0:00:04]} 94. Kxb4 {[%clk 0:00:01]}  Qb6+ {[%clk 0:00:05]} 95. Kc4 {[%clk 0:00:01]}  Rc5+ {[%clk 0:00:06]} 96. Kd3 {[%clk 0:00:02]}  Qd6+ {[%clk 0:00:06]} 97. Ke4 {[%clk 0:00:02]}  Re5+ {[%clk 0:00:07]} 98. Kf3 {[%clk 0:00:03]}  Qf6+ {[%clk 0:00:08]} 99. Kg4 {[%clk 0:00:04]}  Rg5+ {[%clk 0:00:09]} 0-1


[Site "https://www.chess.com"]

[Event "Titled Tuesday Blitz January 31 Early 2023"]
[White "Kopczynski, Michal"]
[Black "Wong, Yinn Long"]
[WhiteFideId "1124200"]
[BlackFideId "5707684"]
[WhiteElo "2225"]
[BlackElo "2371"]
[Result "0-1"]
[Round "06"]
[TimeControl "180+2"]
[Date "2023.01.31"]
[WhiteClock "0:00:58"]
[BlackClock "0:01:21"]

1. e4 {[%clk 0:02:58]}  e6 {[%clk 0:03:00]} 2. d4 {[%clk 0:02:58]}  d5 {[%clk 0:03:01]} 3. Nc3 {[%clk 0:02:58]}  dxe4 {[%clk 0:03:02]} 4. Nxe4 {[%clk 0:02:59]}  Nf6 {[%clk 0:03:03]} 5. Nxf6+ {[%clk 0:02:58]}  gxf6 {[%clk 0:03:03]} 6. Nf3 {[%clk 0:02:59]}  Nc6 {[%clk 0:03:04]} 7. Bd3 {[%clk 0:02:59]}  b6 {[%clk 0:03:03]} 8. Bf4 {[%clk 0:02:59]}  Bb7 {[%clk 0:03:04]} 9. c3 {[%clk 0:02:59]}  Bd6 {[%clk 0:03:01]} 10. Bg3 {[%clk 0:02:58]}  h5 {[%clk 0:03:00]} 11. Qe2 {[%clk 0:02:57]}  Ne7 {[%clk 0:02:55]} 12. O-O-O {[%clk 0:02:55]}  Qd7 {[%clk 0:02:55]} 13. Kb1 {[%clk 0:02:50]}  O-O-O {[%clk 0:02:55]} 14. Ba6 {[%clk 0:02:49]}  Nf5 {[%clk 0:02:50]} 15. Bxb7+ {[%clk 0:02:46]}  Kxb7 {[%clk 0:02:51]} 16. Rhe1 {[%clk 0:02:44]}  h4 {[%clk 0:02:46]} 17. Bxd6 {[%clk 0:02:44]}  Nxd6 {[%clk 0:02:47]} 18. Nd2 {[%clk 0:02:38]}  Qc6 {[%clk 0:02:46]} 19. f3 {[%clk 0:02:32]}  h3 {[%clk 0:02:41]} 20. g3 {[%clk 0:02:29]}  Rh5 {[%clk 0:02:38]} 21. f4 {[%clk 0:02:26]}  Ra5 {[%clk 0:02:27]} 22. Nb3 {[%clk 0:02:25]}  Rb5 {[%clk 0:02:26]} 23. Nc1 {[%clk 0:01:44]}  a5 {[%clk 0:02:08]} 24. a4 {[%clk 0:01:38]}  Rd5 {[%clk 0:02:06]} 25. Qc2 {[%clk 0:01:32]}  Nf5 {[%clk 0:01:37]} 26. Nb3 {[%clk 0:01:18]}  R5d7 {[%clk 0:01:32]} 27. c4 {[%clk 0:01:13]}  Nxd4 {[%clk 0:01:27]} 28. Nxd4 {[%clk 0:01:07]}  Rxd4 {[%clk 0:01:27]} 29. Rxd4 {[%clk 0:01:06]}  Rxd4 {[%clk 0:01:28]} 30. b3 {[%clk 0:01:05]}  Qd6 {[%clk 0:01:27]} 31. Re2 {[%clk 0:01:04]}  Rd1+ {[%clk 0:01:22]} 32. Kb2 {[%clk 0:01:04]}  Qd4+ {[%clk 0:01:22]} 33. Qc3 {[%clk 0:00:58]}  Rb1+ {[%clk 0:01:21]} 34. Kc2 {[%clk 0:00:58]}  Rc1+ {[%clk 0:01:21]} 0-1


[Site "https://www.chess.com"]

[Event "Titled Tuesday Blitz January 31 Early 2023"]
[White "Preotu, Razvan"]
[Black "Lamaze, Simon"]
[WhiteFideId "2613280"]
[BlackFideId "36069264"]
[WhiteElo "2475"]
[BlackElo "2363"]
[Result "0-1"]
[Round "06"]
[TimeControl "180+2"]
[Date "2023.01.31"]
[WhiteClock "0:00:03"]
[BlackClock "0:00:32"]

1. e4 {[%clk 0:02:59]}  c5 {[%clk 0:02:57]} 2. Nf3 {[%clk 0:02:59]}  e6 {[%clk 0:02:54]} 3. c3 {[%clk 0:02:59]}  Nf6 {[%clk 0:02:54]} 4. e5 {[%clk 0:02:59]}  Nd5 {[%clk 0:02:54]} 5. d4 {[%clk 0:02:59]}  cxd4 {[%clk 0:02:55]} 6. cxd4 {[%clk 0:03:00]}  d6 {[%clk 0:02:53]} 7. Bc4 {[%clk 0:03:00]}  Be7 {[%clk 0:02:50]} 8. O-O {[%clk 0:03:01]}  O-O {[%clk 0:02:49]} 9. Qe2 {[%clk 0:03:01]}  Nc6 {[%clk 0:02:49]} 10. Nc3 {[%clk 0:03:01]}  Nxc3 {[%clk 0:02:48]} 11. bxc3 {[%clk 0:03:02]}  dxe5 {[%clk 0:02:49]} 12. dxe5 {[%clk 0:03:03]}  Qc7 {[%clk 0:02:46]} 13. Bd3 {[%clk 0:03:01]}  b6 {[%clk 0:02:44]} 14. Re1 {[%clk 0:03:01]}  Bb7 {[%clk 0:02:43]} 15. Ng5 {[%clk 0:03:00]}  g6 {[%clk 0:02:37]} 16. Nxh7 {[%clk 0:02:58]}  Nxe5 {[%clk 0:02:03]} 17. Nxf8 {[%clk 0:02:21]}  Nxd3 {[%clk 0:02:03]} 18. Qxd3 {[%clk 0:02:20]}  Bxf8 {[%clk 0:01:59]} 19. Bg5 {[%clk 0:02:02]}  Bg7 {[%clk 0:01:58]} 20. Rac1 {[%clk 0:01:57]}  Rc8 {[%clk 0:01:52]} 21. h4 {[%clk 0:01:38]}  Bd5 {[%clk 0:01:51]} 22. Qh3 {[%clk 0:01:14]}  f6 {[%clk 0:01:29]} 23. c4 {[%clk 0:00:33]}  Bxc4 {[%clk 0:01:17]} 24. Rxe6 {[%clk 0:00:21]}  fxg5 {[%clk 0:01:15]} 25. Re7 {[%clk 0:00:21]}  Qc5 {[%clk 0:01:07]} 26. Qd7 {[%clk 0:00:18]}  Bd4 {[%clk 0:00:52]} 27. Re8+ {[%clk 0:00:13]}  Rxe8 {[%clk 0:00:52]} 28. Qxe8+ {[%clk 0:00:14]}  Kg7 {[%clk 0:00:53]} 29. Qd7+ {[%clk 0:00:14]}  Kh6 {[%clk 0:00:52]} 30. hxg5+ {[%clk 0:00:13]}  Kxg5 {[%clk 0:00:49]} 31. Qd8+ {[%clk 0:00:12]}  Kh6 {[%clk 0:00:47]} 32. Qh4+ {[%clk 0:00:10]}  Kg7 {[%clk 0:00:47]} 33. Qf4 {[%clk 0:00:06]}  b5 {[%clk 0:00:45]} 34. Re1 {[%clk 0:00:07]}  Bf6 {[%clk 0:00:42]} 35. Re8 {[%clk 0:00:05]}  Bf7 {[%clk 0:00:35]} 36. Ra8 {[%clk 0:00:06]}  Qd4 {[%clk 0:00:32]} 37. Qc7 {[%clk 0:00:03]}  Qa1+ {[%clk 0:00:32]} 0-1


[Site "https://www.chess.com"]

[Event "Titled Tuesday Blitz January 31 Early 2023"]
[White "Kim, Sergey"]
[Black "Lortkipanidze, Nodar"]
[WhiteFideId "13700570"]
[BlackFideId "13604058"]
[WhiteElo "2295"]
[BlackElo "2406"]
[Result "0-1"]
[Round "06"]
[TimeControl "180+2"]
[Date "2023.01.31"]
[WhiteClock "0:02:00"]
[BlackClock "0:01:59"]

1. d4 {[%clk 0:03:00]}  e6 {[%clk 0:02:58]} 2. c4 {[%clk 0:03:00]}  b6 {[%clk 0:02:58]} 3. Nc3 {[%clk 0:03:00]}  Bb7 {[%clk 0:02:59]} 4. a3 {[%clk 0:03:00]}  f5 {[%clk 0:02:59]} 5. Nf3 {[%clk 0:02:59]}  Nf6 {[%clk 0:02:59]} 6. g3 {[%clk 0:03:00]}  Ne4 {[%clk 0:02:58]} 7. Qd3 {[%clk 0:02:53]}  Be7 {[%clk 0:02:56]} 8. Bg2 {[%clk 0:02:52]}  Nxc3 {[%clk 0:02:56]} 9. Qxc3 {[%clk 0:02:46]}  Bf6 {[%clk 0:02:57]} 10. O-O {[%clk 0:02:43]}  O-O {[%clk 0:02:56]} 11. Rd1 {[%clk 0:02:39]}  c5 {[%clk 0:02:54]} 12. e3 {[%clk 0:02:39]}  Be4 {[%clk 0:02:50]} 13. b4 {[%clk 0:02:34]}  Nc6 {[%clk 0:02:49]} 14. b5 {[%clk 0:02:29]}  Na5 {[%clk 0:02:47]} 15. Ne5 {[%clk 0:02:22]}  Bxg2 {[%clk 0:02:46]} 16. Kxg2 {[%clk 0:02:22]}  Qc7 {[%clk 0:02:40]} 17. Bb2 {[%clk 0:02:13]}  cxd4 {[%clk 0:02:10]} 18. exd4 {[%clk 0:02:12]}  d6 {[%clk 0:02:09]} 19. Nf3 {[%clk 0:02:09]}  Qxc4 {[%clk 0:02:09]} 20. Qe1 {[%clk 0:02:06]}  Qd5 {[%clk 0:02:07]} 21. Rac1 {[%clk 0:02:00]}  g5 {[%clk 0:01:59]} 0-1


[Site "https://www.chess.com"]

[Event "Titled Tuesday Blitz January 31 Early 2023"]
[White "Ismagilov, Damir"]
[Black "Klekowski, Maciej"]
[WhiteFideId "34199982"]
[BlackFideId "1132717"]
[WhiteElo "2156"]
[BlackElo "2477"]
[Result "0-1"]
[Round "06"]
[TimeControl "180+2"]
[Date "2023.01.31"]
[WhiteClock "0:00:01"]
[BlackClock "0:01:12"]

1. e4 {[%clk 0:03:00]}  b6 {[%clk 0:02:56]} 2. Nf3 {[%clk 0:02:57]}  Bb7 {[%clk 0:02:56]} 3. Nc3 {[%clk 0:02:55]}  e6 {[%clk 0:02:54]} 4. g3 {[%clk 0:02:54]}  d5 {[%clk 0:02:52]} 5. exd5 {[%clk 0:02:50]}  exd5 {[%clk 0:02:53]} 6. d4 {[%clk 0:02:49]}  Bb4 {[%clk 0:02:52]} 7. Bg2 {[%clk 0:02:47]}  Ba6 {[%clk 0:02:47]} 8. Bd2 {[%clk 0:02:42]}  Bxc3 {[%clk 0:02:44]} 9. Bxc3 {[%clk 0:02:39]}  Nf6 {[%clk 0:02:45]} 10. Qd2 {[%clk 0:02:38]}  Qe7+ {[%clk 0:02:43]} 11. Qe3 {[%clk 0:02:35]}  Qxe3+ {[%clk 0:02:43]} 12. fxe3 {[%clk 0:02:36]}  Nbd7 {[%clk 0:02:40]} 13. Bf1 {[%clk 0:02:24]}  Bxf1 {[%clk 0:02:39]} 14. Rxf1 {[%clk 0:02:25]}  Ne4 {[%clk 0:02:39]} 15. Nd2 {[%clk 0:02:22]}  Nxd2 {[%clk 0:02:38]} 16. Bxd2 {[%clk 0:02:20]}  Nf6 {[%clk 0:02:38]} 17. O-O-O {[%clk 0:02:14]}  O-O {[%clk 0:02:35]} 18. Kb1 {[%clk 0:02:06]}  Rfe8 {[%clk 0:02:34]} 19. b3 {[%clk 0:02:03]}  b5 {[%clk 0:02:30]} 20. Kb2 {[%clk 0:02:03]}  Re6 {[%clk 0:02:26]} 21. Bc1 {[%clk 0:01:54]}  Rae8 {[%clk 0:02:19]} 22. Rd3 {[%clk 0:01:54]}  Ne4 {[%clk 0:02:19]} 23. a3 {[%clk 0:01:52]}  g6 {[%clk 0:02:17]} 24. b4 {[%clk 0:01:46]}  f5 {[%clk 0:02:16]} 25. Kb3 {[%clk 0:01:44]}  h5 {[%clk 0:02:08]} 26. a4 {[%clk 0:01:41]}  Rb8 {[%clk 0:02:04]} 27. a5 {[%clk 0:01:38]}  Rbe8 {[%clk 0:01:59]} 28. c3 {[%clk 0:01:36]}  Nd6 {[%clk 0:01:59]} 29. Rf3 {[%clk 0:01:31]}  Kg7 {[%clk 0:01:56]} 30. Bd2 {[%clk 0:01:28]}  g5 {[%clk 0:01:56]} 31. Bc1 {[%clk 0:01:22]}  Kg6 {[%clk 0:01:57]} 32. Kc2 {[%clk 0:01:13]}  g4 {[%clk 0:01:54]} 33. Rf2 {[%clk 0:01:12]}  Nc4 {[%clk 0:01:55]} 34. Re2 {[%clk 0:01:11]}  h4 {[%clk 0:01:56]} 35. Kb3 {[%clk 0:00:42]}  Rh8 {[%clk 0:01:47]} 36. Rd1 {[%clk 0:00:41]}  a6 {[%clk 0:01:45]} 37. Kc2 {[%clk 0:00:33]}  hxg3 {[%clk 0:01:45]} 38. hxg3 {[%clk 0:00:34]}  Rh3 {[%clk 0:01:45]} 39. Rg1 {[%clk 0:00:34]}  Nd6 {[%clk 0:01:45]} 40. Bd2 {[%clk 0:00:33]}  Ne4 {[%clk 0:01:46]} 41. Be1 {[%clk 0:00:33]}  Ng5 {[%clk 0:01:37]} 42. Bf2 {[%clk 0:00:22]}  Rh2 {[%clk 0:01:35]} 43. Kd3 {[%clk 0:00:22]}  Nf3 {[%clk 0:01:27]} 44. Rf1 {[%clk 0:00:22]}  Re8 {[%clk 0:01:21]} 45. Be1 {[%clk 0:00:21]}  Reh8 {[%clk 0:01:20]} 46. Bf2 {[%clk 0:00:15]}  Ng5 {[%clk 0:01:17]} 47. Be1 {[%clk 0:00:15]}  Ne4 {[%clk 0:01:17]} 48. Rg1 {[%clk 0:00:08]}  c6 {[%clk 0:01:16]} 49. Reg2 {[%clk 0:00:07]}  Ng5 {[%clk 0:01:12]} 50. Bf2 {[%clk 0:00:05]}  Nf3 {[%clk 0:01:12]} 51. Rxh2 {[%clk 0:00:05]}  Rxh2 {[%clk 0:01:13]} 52. Rf1 {[%clk 0:00:06]}  Ng5 {[%clk 0:01:14]} 53. Ke2 {[%clk 0:00:04]}  Ne4 {[%clk 0:01:14]} 54. Ke1 {[%clk 0:00:03]}  Rg2 {[%clk 0:01:14]} 55. Rg1 {[%clk 0:00:02]}  Rxf2 {[%clk 0:01:14]} 56. Rh1 {[%clk 0:00:03]}  Kg7 {[%clk 0:01:13]} 57. Rh5 {[%clk 0:00:03]}  Rf3 {[%clk 0:01:11]} 58. Ke2 {[%clk 0:00:02]}  Nf6 {[%clk 0:01:11]} 59. Rg5+ {[%clk 0:00:01]}  Kf7 {[%clk 0:01:12]} 0-1


[Site "https://www.chess.com"]